[Event "2nd Kalyan Dombivali 2019"]
[Site "Kalyan"]
[Date "2019.01.29"]
[Round "1.19"]
[White "Shantanu, Sachin Kotekar"]
[Black "Chhabra, Aakash"]
[Result "0-1"]
[ECO "C01"]
[WhiteElo "1075"]
[BlackElo "1620"]
[Annotator "NA"]
[PlyCount "88"]
[EventDate "2019.01.28"]
[EventType "swiss"]
[EventRounds "10"]
[EventCountry "IND"]
[SourceTitle "playchess.com"]
[Source "ChessBase"]
[SourceQuality "1"]
[TimeControl "5400+30"]

1. e4 {[%emt 0:00:00]} e6 {[%emt 0:00:00]} 2. d4 {[%emt 0:00:00]} d5 {[%emt 0:00:00]} 3. exd5 {[%emt 0:00:00]} exd5 {[%emt 0:00:00]} 4. Bd3 {[%emt 0:00:00]} c5 {[%emt 0:00:13]} 5. dxc5 {[%emt 0:01:17]} Bxc5 {[%emt 0:00:12]} 6. Nf3 {[%emt 0:00:11]} Nf6 {[%emt 0:00:16]} 7. O-O {[%emt 0:00:16]} O-O {[%emt 0:00:07]} 8. Bg5 {[%emt 0:00:10]} Bg4 {[%emt 0:00:39]} 9. Nbd2 {[%emt 0:00:32]} Nbd7 {[%emt 0:00:15]} 10. Re1 {[%emt 0:01:08]} Qb6 {[%emt 0:01:04]} 11. Bh4 {[%emt 0:01:01]} Qxb2 {[%emt 0:01:43]} 12. Rb1 {[%emt 0:02:55]} Qxa2 {[%emt 0:03:13]} 13. Rxb7 {[%emt 0:02:36]} Bb6 {[%emt 0:04:38]} 14. Qa1 {[%emt 0:01:18]} Qxa1 {[%emt 0:00:37]} 15. Rxa1 {[%emt 0:00:13]} Rfd8 {[%emt 0:06:08]} 16. h3 {[%emt 0:01:47]} Be6 {[%emt 0:00:18]} 17. Nb3 {[%emt 0:08:32]} d4 {[%emt 0:03:52]} 18. Bxf6 {[%emt 0:16:27]} gxf6 {[%emt 0:01:07]} 19. Be4 {[%emt 0:02:44]} Rab8 {[%emt 0:27:35]} 20. Rxb8 {[%emt 0:00:24]} Nxb8 {[%emt 0:00:07]} 21. Na5 {[%emt 0:02:33]} f5 {[%emt 0:02:17]} 22. Bd3 {[%emt 0:01:32]} Rc8 {[%emt 0:06:03]} 23. Nb3 {[%emt 0:03:38]} Nc6 {[%emt 0:03:28]} 24. Ra4 {[%emt 0:04:49]} Rd8 {[%emt 0:02:56]} 25. Bb5 {[%emt 0:08:37]} d3 {[%emt 0:01:16]} 26. Bxc6 {[%emt 0:02:51]} dxc2 {[%emt 0:00:11]} 27. Nbd4 {[%emt 0:02:41]} c1=Q+ {[%emt 0:01:04]} 28. Kh2 {[%emt 0:00:18]} Bxd4 {[%emt 0:00:12]} 29. Nxd4 {[%emt 0:00:12]} Qf4+ {[%emt 0:00:14]} 30. Kg1 {[%emt 0:00:29]} Rxd4 {[%emt 0:00:08]} 31. Rxd4 {[%emt 0:00:18]} Qxd4 {[%emt 0:00:10]} 32. Bf3 {[%emt 0:00:15]} Bd5 {[%emt 0:00:08]} 33. Bxd5 {[%emt 0:00:13]} Qxd5 {[%emt 0:00:08]} 34. f3 {[%emt 0:00:16]} f4 {[%emt 0:00:05]} 35. Kf2 {[%emt 0:00:06]} Qd2+ {[%emt 0:00:06]} 36. Kg1 {[%emt 0:00:13]} Qe1+ {[%emt 0:00:15]} 37. Kh2 {[%emt 0:00:07]} Qg3+ {[%emt 0:00:06]} 38. Kg1 {[%emt 0:00:08]} a5 {[%emt 0:00:07]} 39. Kh1 {[%emt 0:00:09]} a4 {[%emt 0:00:06]} 40. Kg1 {[%emt 0:00:14]} Qe1+ {[%emt 0:00:10]} 41. Kh2 {[%emt 0:00:10]} a3 {[%emt 0:00:06]} 42. h4 {[%emt 0:00:10]} a2 {[%emt 0:00:09]} 43. h5 {[%emt 0:00:13]} Qg3+ {[%emt 0:00:07]} 44. Kg1 {[%emt 0:00:28]} a1=Q# {[%emt 0:00:05]} 0-1

[Event "2nd Kalyan Dombivali 2019"]
[Site "Kalyan"]
[Date "2019.01.30"]
[Round "2.5"]
[White "Snehal, Bhosale"]
[Black "Arnav, Pradhan"]
[Result "1-0"]
[ECO "E94"]
[WhiteElo "2135"]
[BlackElo "1304"]
[Annotator "RC"]
[PlyCount "95"]
[EventDate "2019.01.28"]
[EventType "swiss"]
[EventRounds "10"]
[EventCountry "IND"]
[SourceTitle "playchess.com"]
[Source "ChessBase"]
[SourceQuality "1"]
[TimeControl "5400+30"]

1. d4 {[%emt 0:00:00]} Nf6 {[%emt 0:00:00]} 2. c4 {[%emt 0:00:02]} g6 {[%emt 0:00:00]} 3. Nc3 {[%emt 0:00:13]} Bg7 {[%emt 0:00:00]} 4. e4 {[%emt 0:00:05]} d6 {[%emt 0:00:04]} 5. Nf3 {[%emt 0:00:09]} O-O {[%emt 0:00:10]} 6. Be2 {[%emt 0:00:08]} e5 {[%emt 0:00:24]} 7. O-O {[%emt 0:00:34]} Nbd7 {[%emt 0:00:33]} 8. Be3 {[%emt 0:00:36]} Ng4 {[%emt 0:00:35]} 9. Bg5 {[%emt 0:00:08]} f6 {[%emt 0:00:07]} 10. Bc1 {[%emt 0:00:50]} g5 {[%emt 0:00:42]} 11. dxe5 {[%emt 0:06:30]} Ngxe5 {[%emt 0:01:18]} 12. Nd4 {[%emt 0:00:34]} Nc5 {[%emt 0:01:17]} 13. Be3 {[%emt 0:02:44]} a5 {[%emt 0:01:27]} 14. b3 {[%emt 0:07:08]} c6 {[%emt 0:07:56]} 15. f3 {[%emt 0:06:54]} Qc7 {[%emt 0:02:14]} 16. Qd2 {[%emt 0:02:09]} Ng6 {[%emt 0:04:25]} 17. Rfd1 {[%emt 0:03:58]} Rd8 {[%emt 0:00:41]} 18. Rac1 {[%emt 0:00:46]} Ne6 {[%emt 0:02:43]} 19. Nf5 {[%emt 0:01:30]} Bf8 {[%emt 0:00:11]} 20. Na4 {[%emt 0:01:14]} c5 {[%emt 0:00:46]} 21. g3 {[%emt 0:03:15]} Ng7 {[%emt 0:00:56]} 22. Bxc5 {[%emt 0:07:48]} Bxf5 {[%emt 0:01:31]} 23. Bb6 {[%emt 0:01:46]} Qc6 {[%emt 0:00:45]} 24. exf5 {[%emt 0:01:05]} Nxf5 {[%emt 0:00:31]} 25. Bxd8 {[%emt 0:00:42]} Rxd8 {[%emt 0:00:08]} 26. Qxa5 {[%emt 0:01:29]} Ne5 {[%emt 0:01:14]} 27. Qxd8 {[%emt 0:03:00]} Nxf3+ {[%emt 0:00:28]} 28. Bxf3 {[%emt 0:00:26]} Qxf3 {[%emt 0:00:10]} 29. Qe8 {[%emt 0:01:42]} Nxg3 {[%emt 0:00:36]} 30. hxg3 {[%emt 0:00:46]} Qxg3+ {[%emt 0:00:06]} 31. Kf1 {[%emt 0:00:06]} Qf3+ {[%emt 0:00:14]} 32. Ke1 {[%emt 0:00:08]} Qg3+ {[%emt 0:01:25]} 33. Kd2 {[%emt 0:01:39]} d5 {[%emt 0:01:50]} 34. cxd5 {[%emt 0:00:41]} Kg7 {[%emt 0:01:07]} 35. Kc2 {[%emt 0:00:48]} Bb4 {[%emt 0:01:35]} 36. Kb1 {[%emt 0:00:16]} Qf4 {[%emt 0:00:51]} 37. Qe6 {[%emt 0:00:37]} Ba3 {[%emt 0:00:36]} 38. Nb2 {[%emt 0:01:27]} Qh2 {[%emt 0:00:20]} 39. Rc2 {[%emt 0:00:24]} Qf4 {[%emt 0:00:13]} 40. d6 {[%emt 0:00:31]} Bb4 {[%emt 0:00:36]} 41. Rc7+ {[%emt 0:00:45]} Kg6 {[%emt 0:00:10]} 42. Qf7+ {[%emt 0:00:07]} Kf5 {[%emt 0:00:10]} 43. Qxh7+ {[%emt 0:00:11]} Kg4 {[%emt 0:00:09]} 44. Rc4 {[%emt 0:00:14]} Bxd6 {[%emt 0:00:18]} 45. Rxd6 {[%emt 0:00:10]} f5 {[%emt 0:00:06]} 46. Rd3 {[%emt 0:00:12]} Qe4 {[%emt 0:00:13]} 47. Qh3+ {[%emt 0:00:07]} Kf4 {[%emt 0:00:03]} 48. Qg3# {[%emt 0:00:05]} 1-0

[Event "2nd Kalyan Dombivali 2019"]
[Site "Kalyan"]
[Date "2019.01.30"]
[Round "2.7"]
[White "Satkar, Chirag"]
[Black "Kunder, Pratik"]
[Result "1-0"]
[ECO "E94"]
[WhiteElo "2071"]
[BlackElo "1300"]
[Annotator "NA RC"]
[PlyCount "61"]
[EventDate "2019.01.28"]
[EventType "swiss"]
[EventRounds "10"]
[EventCountry "IND"]
[SourceTitle "playchess.com"]
[Source "ChessBase"]
[SourceQuality "1"]
[TimeControl "5400+30"]

1. d4 {[%emt 0:00:00]} Nf6 {[%emt 0:00:00]} 2. c4 {[%emt 0:00:00]} g6 {[%emt 0:00:00]} 3. Nc3 {[%emt 0:00:10]} Bg7 {[%emt 0:00:00]} 4. e4 {[%emt 0:00:20]} d6 {[%emt 0:00:02]} 5. Be2 {[%emt 0:00:40]} O-O 6. Nf3 {[%emt 0:00:28]} e5 {[%emt 0:06:33]} 7. O-O {[%emt 0:00:56]} exd4 {[%emt 0:02:22]} 8. Nxd4 {[%emt 0:00:37]} Re8 {[%emt 0:00:34]} 9. f3 {[%emt 0:03:09]} Nfd7 {[%emt 0:02:12]} 10. Be3 {[%emt 0:11:31]} a5 {[%emt 0:03:10]} 11. Qd2 {[%emt 0:01:48]} Nc5 {[%emt 0:02:41]} 12. Rad1 {[%emt 0:07:53]} Qd7 {[%emt 0:11:36]} 13. Ndb5 {[%emt 0:08:34]} Qc6 {[%emt 0:07:30]} 14. Nd5 {[%emt 0:03:19]} Nba6 {[%emt 0:07:58]} 15. Bd4 {[%emt 0:02:00]} Nd7 {[%emt 0:20:36]} 16. Qxa5 {[%emt 0:04:48]} b6 {[%emt 0:01:05]} 17. Qd2 {[%emt 0:02:06]} Rb8 {[%emt 0:02:48]} 18. Bxg7 {[%emt 0:08:02]} Kxg7 {[%emt 0:00:19]} 19. Nd4 {[%emt 0:00:55]} Qb7 {[%emt 0:02:10]} 20. Qg5 {[%emt 0:01:42]} Kh8 {[%emt 0:01:19]} 21. f4 {[%emt 0:03:42]} Nac5 {[%emt 0:01:04]} 22. Bf3 {[%emt 0:00:52]} c6 {[%emt 0:02:12]} 23. Nf6 {[%emt 0:07:03]} Ne6 {[%emt 0:01:40]} 24. Nxe6 {[%emt 0:01:50]} Rxe6 {[%emt 0:00:10]} 25. Nxd7 {[%emt 0:01:13]} Bxd7 {[%emt 0:01:44]} 26. f5 {[%emt 0:02:06]} gxf5 {[%emt 0:02:22]} 27. exf5 {[%emt 0:00:09]} Rg8 {[%emt 0:00:47]} 28. Qd2 {[%emt 0:00:34]} Ree8 {[%emt 0:01:52]} 29. Qxd6 {[%emt 0:00:18]} Bc8 {[%emt 0:00:37]} 30. Qf6+ {[%emt 0:00:37]} Rg7 {[%emt 0:00:10]} 31. Bxc6 {[%emt 0:00:23]} 1-0

[Event "2nd Kalyan Dombivali 2019"]
[Site "Kalyan"]
[Date "2019.01.30"]
[Round "2.8"]
[White "Godse, Anish"]
[Black "Saranya, Y."]
[Result "0-1"]
[ECO "B27"]
[WhiteElo "1288"]
[BlackElo "1961"]
[Annotator "NA RC"]
[PlyCount "58"]
[EventDate "2019.01.28"]
[EventType "swiss"]
[EventRounds "10"]
[EventCountry "IND"]
[SourceTitle "playchess.com"]
[Source "ChessBase"]
[SourceQuality "1"]
[TimeControl "5400+30"]

1. e4 {[%emt 0:00:00]} c5 {[%emt 0:21:56]} 2. Nf3 {[%emt 0:00:00]} g6 {[%emt 0:00:07]} 3. Nc3 {[%emt 0:00:17]} Bg7 {[%emt 0:00:09]} 4. Bc4 {[%emt 0:00:17]} Nc6 {[%emt 0:00:54]} 5. d3 {[%emt 0:00:18]} Na5 {[%emt 0:08:59]} 6. Bb3 {[%emt 0:03:37]} Nxb3 {[%emt 0:02:19]} 7. axb3 {[%emt 0:00:27]} d6 {[%emt 0:00:46]} 8. O-O {[%emt 0:01:24]} Nf6 {[%emt 0:03:08]} 9. h3 {[%emt 0:01:06]} O-O {[%emt 0:03:59]} 10. Be3 {[%emt 0:00:29]} b6 {[%emt 0:00:51]} 11. Qd2 {[%emt 0:03:31]} Re8 {[%emt 0:05:22]} 12. Bh6 {[%emt 0:01:00]} Bh8 {[%emt 0:00:18]} 13. Rfe1 {[%emt 0:01:33]} Bb7 {[%emt 0:02:02]} 14. Qg5 {[%emt 0:02:29]} Nd7 {[%emt 0:08:50]} 15. Qg3 {[%emt 0:07:52]} Ne5 {[%emt 0:05:02]} 16. Re3 {[%emt 0:15:25]} e6 {[%emt 0:06:02]} 17. Nh4 {[%emt 0:03:44]} Bf6 {[%emt 0:03:08]} 18. Nf3 {[%emt 0:02:00]} Bc6 {[%emt 0:03:19]} 19. Qf4 {[%emt 0:03:41]} a5 {[%emt 0:03:31]} 20. Ne2 {[%emt 0:05:35]} Ra7 {[%emt 0:03:52]} 21. c3 {[%emt 0:01:38]} Nxf3+ {[%emt 0:02:37]} 22. Rxf3 {[%emt 0:00:15]} Be5 {[%emt 0:00:24]} 23. Qe3 {[%emt 0:00:59]} f5 {[%emt 0:01:36]} 24. Bf4 {[%emt 0:01:52]} Bf6 {[%emt 0:02:29]} 25. Bh6 {[%emt 0:05:10]} e5 {[%emt 0:02:22]} 26. g3 {[%emt 0:01:11]} Rf7 {[%emt 0:01:53]} 27. h4 {[%emt 0:01:35]} d5 {[%emt 0:02:06]} 28. Rd1 {[%emt 0:02:16]} dxe4 {[%emt 0:00:30]} 29. Qc1 {[%emt 0:01:01]} exf3 {[%emt 0:00:13]} 0-1

[Event "2nd Kalyan Dombivali 2019"]
[Site "Kalyan"]
[Date "2019.01.30"]
[Round "2.9"]
[White "Kadam, Om Manish"]
[Black "Subramanian, T.V."]
[Result "1-0"]
[ECO "B42"]
[WhiteElo "1943"]
[BlackElo "1290"]
[Annotator "NA RC"]
[PlyCount "101"]
[EventDate "2019.01.28"]
[EventType "swiss"]
[EventRounds "10"]
[EventCountry "IND"]
[SourceTitle "playchess.com"]
[Source "ChessBase"]
[SourceQuality "1"]
[TimeControl "5400+30"]

1. e4 {[%emt 0:00:00]} c5 {[%emt 0:01:59]} 2. Nf3 {[%emt 0:00:00]} e6 {[%emt 0:00:05]} 3. d4 {[%emt 0:00:00]} cxd4 {[%emt 0:00:05]} 4. Nxd4 {[%emt 0:00:00]} a6 {[%emt 0:00:10]} 5. Bd3 {[%emt 0:00:00]} Nf6 {[%emt 0:00:17]} 6. Nc3 {[%emt 0:00:33]} Qc7 {[%emt 0:00:06]} 7. a4 {[%emt 0:01:39]} b6 {[%emt 0:00:48]} 8. f4 {[%emt 0:00:20]} Bb7 {[%emt 0:01:02]} 9. Qe2 {[%emt 0:00:51]} Bb4 {[%emt 0:01:24]} 10. Bd2 {[%emt 0:00:53]} h5 {[%emt 0:03:09]} 11. Rf1 {[%emt 0:13:18]} Nc6 {[%emt 0:02:52]} 12. Nxc6 {[%emt 0:07:52]} Qxc6 {[%emt 0:02:28]} 13. e5 {[%emt 0:08:17]} Bxc3 {[%emt 0:00:36]} 14. Bxc3 {[%emt 0:09:53]} Ne4 {[%emt 0:03:49]} 15. Bd4 {[%emt 0:01:38]} Nc5 {[%emt 0:00:41]} 16. Bxc5 {[%emt 0:00:37]} Qxc5 {[%emt 0:01:05]} 17. f5 {[%emt 0:00:38]} exf5 {[%emt 0:12:17]} 18. Bxf5 {[%emt 0:00:38]} O-O-O {[%emt 0:01:02]} 19. O-O-O {[%emt 0:00:37]} Rhe8 {[%emt 0:02:23]} 20. Rfe1 {[%emt 0:15:42]} g6 {[%emt 0:04:27]} 21. Bd3 {[%emt 0:04:39]} Qa5 {[%emt 0:00:36]} 22. Bc4 {[%emt 0:06:34]} Re7 {[%emt 0:04:14]} 23. Bb3 {[%emt 0:07:56]} Rde8 {[%emt 0:00:50]} 24. Bxf7 {[%emt 0:01:20]} Rxe5 {[%emt 0:04:24]} 25. Qc4+ {[%emt 0:00:36]} Bc6 {[%emt 0:02:27]} 26. b4 {[%emt 0:00:55]} Qxa4 {[%emt 0:06:24]} 27. Bxe8 {[%emt 0:00:06]} Qa3+ {[%emt 0:05:13]} 28. Kb1 {[%emt 0:00:47]} Rb5 {[%emt 0:03:54]} 29. Bxd7+ {[%emt 0:00:08]} Kb8 {[%emt 0:00:27]} 30. Qf4+ {[%emt 0:00:17]} Ka7 {[%emt 0:00:38]} 31. Qc7+ {[%emt 0:00:07]} Bb7 {[%emt 0:00:19]} 32. Bxb5 {[%emt 0:00:04]} Qxb4+ {[%emt 0:00:31]} 33. Kc1 {[%emt 0:00:13]} axb5 {[%emt 0:00:54]} 34. Re7 {[%emt 0:01:02]} Qa3+ {[%emt 0:00:30]} 35. Kd2 {[%emt 0:00:09]} Qb4+ {[%emt 0:00:21]} 36. c3 {[%emt 0:00:12]} Qb2+ {[%emt 0:00:29]} 37. Kd3 {[%emt 0:00:06]} Qxg2 {[%emt 0:01:44]} 38. Qxb7+ {[%emt 0:00:02]} Qxb7 {[%emt 0:00:19]} 39. Rxb7+ {[%emt 0:00:02]} Kxb7 {[%emt 0:00:10]} 40. Rg1 {[%emt 0:00:03]} Ka6 {[%emt 0:00:19]} 41. Rxg6 {[%emt 0:00:06]} Ka5 {[%emt 0:00:11]} 42. Rg7 {[%emt 0:00:27]} b4 {[%emt 0:01:04]} 43. c4 {[%emt 0:00:05]} Ka4 {[%emt 0:00:21]} 44. Ra7+ {[%emt 0:00:12]} Kb3 {[%emt 0:00:23]} 45. Rb7 {[%emt 0:00:03]} Kb2 {[%emt 0:00:37]} 46. Rxb6 {[%emt 0:00:05]} b3 {[%emt 0:00:33]} 47. c5 {[%emt 0:00:03]} h4 {[%emt 0:00:18]} 48. h3 {[%emt 0:00:03]} Ka2 {[%emt 0:00:39]} 49. c6 {[%emt 0:00:04]} b2 {[%emt 0:00:39]} 50. Kc2 {[%emt 0:00:05]} Ka1 {[%emt 0:00:33]} 51. Ra6# {[%emt 0:00:03]} 1-0

[Event "2nd Kalyan Dombivali 2019"]
[Site "Kalyan"]
[Date "2019.01.30"]
[Round "2.10"]
[White "Tawade, Arnav"]
[Black "Ahmed, Feroz"]
[Result "0-1"]
[ECO "E91"]
[WhiteElo "1285"]
[BlackElo "1919"]
[Annotator "NA RC"]
[PlyCount "66"]
[EventDate "2019.01.28"]
[EventType "swiss"]
[EventRounds "10"]
[EventCountry "IND"]
[SourceTitle "playchess.com"]
[Source "ChessBase"]
[SourceQuality "1"]
[TimeControl "5400+30"]

1. d4 {[%emt 0:00:00]} Nf6 {[%emt 0:00:24]} 2. c4 {[%emt 0:00:00]} g6 {[%emt 0:00:09]} 3. Nc3 {[%emt 0:00:00]} Bg7 {[%emt 0:00:05]} 4. e4 {[%emt 0:00:17]} d6 {[%emt 0:00:03]} 5. Nf3 {[%emt 0:00:06]} O-O {[%emt 0:00:06]} 6. Be2 {[%emt 0:00:23]} Nbd7 {[%emt 0:00:54]} 7. O-O {[%emt 0:00:28]} e5 {[%emt 0:00:06]} 8. Qc2 {[%emt 0:00:14]} exd4 {[%emt 0:02:25]} 9. Nxd4 {[%emt 0:00:07]} Re8 {[%emt 0:00:12]} 10. Rd1 {[%emt 0:00:30]} Nc5 {[%emt 0:02:05]} 11. f3 {[%emt 0:11:43]} Nh5 {[%emt 0:08:46]} 12. Be3 {[%emt 0:12:32]} f5 {[%emt 0:00:57]} 13. Nb3 {[%emt 0:07:03]} Nxb3 {[%emt 0:03:18]} 14. Qxb3 {[%emt 0:01:22]} Be6 {[%emt 0:06:42]} 15. Nd5 {[%emt 0:09:28]} Bxd5 {[%emt 0:01:28]} 16. Rxd5 {[%emt 0:05:51]} fxe4 {[%emt 0:06:03]} 17. fxe4 {[%emt 0:03:56]} Rxe4 {[%emt 0:13:42]} 18. Bf3 {[%emt 0:10:59]} Re5 {[%emt 0:05:41]} 19. Rxe5 {[%emt 0:02:03]} Bxe5 {[%emt 0:00:10]} 20. Qxb7 {[%emt 0:01:33]} Rb8 {[%emt 0:01:12]} 21. Qd5+ {[%emt 0:01:12]} Kg7 {[%emt 0:01:14]} 22. Bd4 {[%emt 0:01:07]} Bxd4+ {[%emt 0:03:36]} 23. Qxd4+ {[%emt 0:00:08]} Nf6 {[%emt 0:01:10]} 24. Qxa7 {[%emt 0:10:27]} Rxb2 {[%emt 0:00:02]} 25. a4 {[%emt 0:00:16]} Qe7 {[%emt 0:09:59]} 26. a5 {[%emt 0:01:37]} Qe5 {[%emt 0:04:53]} 27. Qxc7+ {[%emt 0:08:39]} Kh6 {[%emt 0:00:18]} 28. a6 {[%emt 0:04:50]} Ne4 {[%emt 0:05:48]} 29. Qa7 {[%emt 0:05:41]} Rb6 {[%emt 0:00:30]} 30. Rf1 {[%emt 0:01:15]} Qc5+ {[%emt 0:00:44]} 31. Kh1 {[%emt 0:00:06]} Nf2+ {[%emt 0:00:14]} 32. Rxf2 {[%emt 0:00:20]} Rb1+ {[%emt 0:00:22]} 33. Rf1 {[%emt 0:00:05]} Rxf1# {[%emt 0:00:09]} 0-1

[Event "2nd Kalyan Dombivali 2019"]
[Site "Kalyan"]
[Date "2019.01.30"]
[Round "2.11"]
[White "Vijay, Anand M."]
[Black "Singla, Aaryan"]
[Result "1-0"]
[ECO "B70"]
[WhiteElo "1841"]
[BlackElo "1287"]
[Annotator "NA RC"]
[PlyCount "92"]
[EventDate "2019.01.28"]
[EventType "swiss"]
[EventRounds "10"]
[EventCountry "IND"]
[SourceTitle "playchess.com"]
[Source "ChessBase"]
[SourceQuality "1"]
[TimeControl "5400+30"]

1. e4 {[%emt 0:19:50]} c5 {[%emt 0:00:07]} 2. Nf3 {[%emt 0:00:07]} d6 {[%emt 0:00:05]} 3. d4 {[%emt 0:00:06]} cxd4 {[%emt 0:00:02]} 4. Nxd4 {[%emt 0:00:08]} Nf6 {[%emt 0:00:04]} 5. Nc3 {[%emt 0:00:06]} g6 {[%emt 0:00:02]} 6. g3 {[%emt 0:00:11]} Bd7 {[%emt 0:00:18]} 7. Bg2 {[%emt 0:00:12]} Nc6 8. Nde2 {[%emt 0:00:07]} Bg7 {[%emt 0:01:20]} 9. O-O {[%emt 0:00:06]} O-O {[%emt 0:00:37]} 10. h3 {[%emt 0:00:05]} Rb8 {[%emt 0:01:48]} 11. a4 {[%emt 0:00:06]} a6 {[%emt 0:00:21]} 12. Be3 {[%emt 0:00:33]} b5 {[%emt 0:00:40]} 13. axb5 {[%emt 0:00:05]} axb5 {[%emt 0:00:11]} 14. Nd5 {[%emt 0:00:04]} Ne5 {[%emt 0:05:30]} 15. Ra2 {[%emt 0:00:43]} Nc4 {[%emt 0:01:19]} 16. Bc1 {[%emt 0:00:09]} Nxd5 {[%emt 0:00:27]} 17. exd5 {[%emt 0:00:08]} Qc7 {[%emt 0:01:22]} 18. b3 {[%emt 0:00:16]} Nb6 {[%emt 0:00:09]} 19. Nd4 {[%emt 0:00:35]} Qc5 {[%emt 0:01:32]} 20. Be3 {[%emt 0:08:43]} Nxd5 {[%emt 0:00:59]} 21. Ne6 {[%emt 0:00:08]} Bxe6 {[%emt 0:05:13]} 22. Bxc5 {[%emt 0:02:17]} Nc3 {[%emt 0:00:05]} 23. Qd2 {[%emt 0:00:19]} Nxa2 {[%emt 0:00:13]} 24. Bd4 {[%emt 0:00:27]} b4 {[%emt 0:01:56]} 25. Bxg7 {[%emt 0:01:15]} Kxg7 {[%emt 0:00:07]} 26. Ra1 {[%emt 0:00:15]} Nc3 {[%emt 0:00:08]} 27. Ra7 {[%emt 0:00:06]} Rfe8 {[%emt 0:00:46]} 28. h4 {[%emt 0:00:48]} h5 {[%emt 0:00:57]} 29. Qg5 {[%emt 0:02:41]} Rb5 {[%emt 0:01:10]} 30. Qd2 {[%emt 0:00:21]} Bd5 {[%emt 0:03:06]} 31. Bf1 {[%emt 0:01:35]} Rbb8 {[%emt 0:01:30]} 32. Qg5 {[%emt 0:05:08]} e5 {[%emt 0:02:04]} 33. Bd3 {[%emt 0:01:56]} e4 {[%emt 0:09:02]} 34. Bc4 {[%emt 0:07:54]} Bxc4 {[%emt 0:07:28]} 35. bxc4 {[%emt 0:00:06]} e3 {[%emt 0:00:38]} 36. Kg2 {[%emt 0:20:12]} e2 {[%emt 0:03:07]} 37. Qf4 {[%emt 0:00:08]} e1=N+ {[%emt 0:00:45]} 38. Kf1 {[%emt 0:00:12]} Rf8 {[%emt 0:01:06]} 39. Kxe1 {[%emt 0:00:10]} b3 {[%emt 0:01:36]} 40. cxb3 {[%emt 0:01:43]} Rxb3 {[%emt 0:00:05]} 41. Kf1 {[%emt 0:00:13]} Rb1+ {[%emt 0:01:18]} 42. Kg2 {[%emt 0:00:21]} Rg1+ {[%emt 0:00:12]} 43. Kh2 {[%emt 0:00:22]} Rd1 {[%emt 0:01:07]} 44. Qf3 {[%emt 0:00:59]} Rc1 {[%emt 0:00:18]} 45. Qe3 {[%emt 0:05:02]} Rc2 {[%emt 0:00:06]} 46. Qd3 {[%emt 0:00:44]} Rc1 {[%emt 0:00:16]} 1-0

[Event "2nd Kalyan Dombivali 2019"]
[Site "Kalyan"]
[Date "2019.01.30"]
[Round "2.12"]
[White "Keshavendra, Mishra"]
[Black "Sparsh, Khandelwal"]
[Result "0-1"]
[ECO "D85"]
[WhiteElo "1261"]
[BlackElo "1823"]
[Annotator "NA RC"]
[PlyCount "62"]
[EventDate "2019.01.28"]
[EventType "swiss"]
[EventRounds "10"]
[EventCountry "IND"]
[SourceTitle "playchess.com"]
[Source "ChessBase"]
[SourceQuality "1"]
[TimeControl "5400+30"]

1. d4 {[%emt 0:01:44]} Nf6 {[%emt 0:00:01]} 2. c4 {[%emt 0:01:06]} g6 {[%emt 0:02:56]} 3. Nc3 {[%emt 0:00:10]} d5 {[%emt 0:00:37]} 4. cxd5 {[%emt 0:17:38]} Nxd5 {[%emt 0:00:34]} 5. Nxd5 {[%emt 0:04:41]} Qxd5 {[%emt 0:00:09]} 6. Nf3 {[%emt 0:00:19]} Bg7 {[%emt 0:02:17]} 7. e3 {[%emt 0:00:08]} O-O {[%emt 0:00:18]} 8. Be2 {[%emt 0:00:05]} c5 {[%emt 0:06:18]} 9. O-O {[%emt 0:06:47]} Nc6 {[%emt 0:04:53]} 10. dxc5 {[%emt 0:04:36]} Qxc5 {[%emt 0:00:45]} 11. Qb3 {[%emt 0:03:30]} Be6 {[%emt 0:09:25]} 12. Qb5 {[%emt 0:16:21]} Qxb5 {[%emt 0:03:21]} 13. Bxb5 {[%emt 0:00:03]} Nb4 {[%emt 0:00:36]} 14. Ng5 {[%emt 0:09:10]} Bxa2 {[%emt 0:02:27]} 15. Bd2 {[%emt 0:00:36]} a5 {[%emt 0:00:06]} 16. Bc3 {[%emt 0:01:53]} Rfc8 {[%emt 0:00:54]} 17. Bxg7 {[%emt 0:00:27]} Kxg7 {[%emt 0:00:05]} 18. Rfc1 {[%emt 0:02:33]} Bb3 {[%emt 0:01:44]} 19. h3 {[%emt 0:02:09]} Nc2 {[%emt 0:00:08]} 20. Rab1 {[%emt 0:07:20]} Ba2 {[%emt 0:00:11]} 21. Bd7 {[%emt 0:02:03]} Rc7 {[%emt 0:00:16]} 22. Ra1 {[%emt 0:01:56]} Bb3 {[%emt 0:01:10]} 23. Ra3 {[%emt 0:02:48]} a4 {[%emt 0:01:09]} 24. Bb5 {[%emt 0:05:31]} Rc5 {[%emt 0:00:26]} 25. Bd3 {[%emt 0:00:42]} Rxg5 {[%emt 0:00:16]} 26. Bxc2 {[%emt 0:02:38]} Rc5 {[%emt 0:00:12]} 27. Bxb3 {[%emt 0:00:59]} Rxc1+ {[%emt 0:00:10]} 28. Kh2 {[%emt 0:00:03]} b5 {[%emt 0:00:13]} 29. Bd5 {[%emt 0:01:03]} Rd8 {[%emt 0:00:20]} 30. Bf3 {[%emt 0:00:59]} Rd2 {[%emt 0:00:08]} 31. b3 {[%emt 0:00:41]} Rc3 {[%emt 0:00:13]} 0-1

[Event "2nd Kalyan Dombivali 2019"]
[Site "Kalyan"]
[Date "2019.01.30"]
[Round "2.13"]
[White "Nehete, Akshay S"]
[Black "Rane, Parnavi"]
[Result "1-0"]
[ECO "A51"]
[WhiteElo "1788"]
[BlackElo "1273"]
[Annotator "NA RC"]
[PlyCount "59"]
[EventDate "2019.01.28"]
[EventType "swiss"]
[EventRounds "10"]
[EventCountry "IND"]
[SourceTitle "playchess.com"]
[Source "ChessBase"]
[SourceQuality "1"]
[TimeControl "5400+30"]

1. d4 {[%emt 0:00:00]} Nf6 {[%emt 0:00:00]} 2. c4 {[%emt 0:00:00]} e5 {[%emt 0:00:00]} 3. dxe5 {[%emt 0:01:29]} Ne4 {[%emt 0:00:49]} 4. Nd2 {[%emt 0:05:44]} Bb4 {[%emt 0:14:00]} 5. a3 {[%emt 0:00:44]} Bxd2+ {[%emt 0:02:53]} 6. Bxd2 {[%emt 0:00:06]} Qe7 {[%emt 0:00:12]} 7. Nf3 {[%emt 0:00:57]} Nc6 {[%emt 0:00:12]} 8. Bf4 {[%emt 0:02:40]} d6 {[%emt 0:09:57]} 9. Qd5 {[%emt 0:15:20]} f5 {[%emt 0:07:47]} 10. exd6 {[%emt 0:02:21]} cxd6 {[%emt 0:00:58]} 11. Nd4 {[%emt 0:14:36]} Nf6 {[%emt 0:13:54]} 12. Nxc6 {[%emt 0:05:00]} Nxd5 {[%emt 0:00:48]} 13. Nxe7 {[%emt 0:00:06]} Nxf4 {[%emt 0:00:09]} 14. Nxc8 {[%emt 0:02:00]} Rxc8 {[%emt 0:00:08]} 15. e3 {[%emt 0:03:43]} Ne6 {[%emt 0:03:24]} 16. b4 {[%emt 0:10:35]} O-O {[%emt 0:02:04]} 17. Rd1 {[%emt 0:01:14]} Rfd8 {[%emt 0:00:29]} 18. f3 {[%emt 0:10:32]} Rc6 {[%emt 0:16:14]} 19. Kf2 {[%emt 0:02:30]} g6 {[%emt 0:03:41]} 20. Be2 {[%emt 0:00:43]} Kf7 {[%emt 0:02:39]} 21. Rd2 {[%emt 0:05:38]} Ke7 {[%emt 0:02:48]} 22. Rhd1 {[%emt 0:00:14]} a6 {[%emt 0:02:09]} 23. f4 {[%emt 0:04:57]} Rc7 {[%emt 0:03:05]} 24. h3 {[%emt 0:00:34]} Rcd7 {[%emt 0:03:26]} 25. Bf3 {[%emt 0:01:19]} Rc7 {[%emt 0:01:49]} 26. Bd5 {[%emt 0:01:40]} Rcd7 {[%emt 0:01:36]} 27. g4 {[%emt 0:00:17]} Kf6 {[%emt 0:02:38]} 28. Kf3 {[%emt 0:01:08]} Ng7 {[%emt 0:01:34]} 29. Re1 {[%emt 0:02:08]} Re8 30. Rde2 1-0